lending/lending_fUSD_20250131
["ID","MTS","AMOUNT","RATE_DAILY","PERIOD"]
[351083106,1738327848530,-703.66,0.00016575,2]
[351083108,1738327848539,-500.0,0.00016575,2]
[351083110,1738327848549,-500.0,0.00016575,2]
[351083112,1738327848559,-510.59648039,0.00016575,2]
[351083114,1738327848568,-500.0,0.00016575,2]
[351083116,1738327848577,-500.0,0.00016575,2]
[351083118,1738327848587,-904.31,0.00016575,2]
[351083121,1738327848597,-942.93,0.00016575,2]
[351083123,1738327848606,-1119.84,0.00016575,2]
[351083125,1738327848616,-608.64769462,0.00016575,2]
[351083127,1738327848626,-220.55741672,0.00016575,2]
[351083129,1738327848636,-546.85,0.00016575,2]
[351083130,1738327848644,-708.19,0.00016575,2]
[351083133,1738327848654,-500.0,0.00016575,2]
[351083135,1738327848666,-505.04050696,0.00016575,2]
[351083136,1738327848678,-625.76,0.00016575,2]
[351083138,1738327848687,-791.84,0.00016575,2]
[351083140,1738327848696,-612.72,0.00016575,2]
[351083142,1738327848705,-239.74717548,0.00016575,2]
[351083144,1738327848715,-601.64,0.00016575,2]
[351083145,1738327848724,-785.54,0.00016575,2]
[351083146,1738327848734,-500.0,0.00016575,2]
[351083147,1738327848746,-500.0,0.00016575,2]
[351083148,1738327848755,-500.0,0.00016575,2]
[351083149,1738327848764,-605.17,0.00016575,2]
[351083150,1738327848774,-557.11296448,0.00016575,2]
[351083151,1738327848784,-500.0,0.00016575,2]
[351083152,1738327848793,-352.83542016,0.00016575,2]
[351083153,1738327848802,-500.0,0.00016575,2]
[351083154,1738327848811,-500.0,0.00016575,2]
[351083155,1738327848821,-995.08,0.00016575,2]
[351083157,1738327848830,-1466.99,0.00016575,2]
[351083159,1738327848839,-500.0,0.00016575,2]
[351083161,1738327848848,-500.0,0.00016575,2]
[351083163,1738327848858,-500.0,0.00016575,2]
[351083165,1738327848868,-500.0,0.00016575,2]
[351083167,1738327848877,-500.0,0.00016575,2]
[351083169,1738327848887,-500.0,0.00016575,2]
[351083171,1738327848896,-500.0,0.00016575,2]
[351083173,1738327848906,-500.0,0.00016575,2]
[351083175,1738327848915,-745.4,0.00016575,2]
[351083177,1738327848924,-555.02,0.00016575,2]
[351083179,1738327848933,-500.0,0.00016575,2]
[351083181,1738327848942,-500.0,0.00016575,2]
[351083183,1738327848952,-583.82,0.00016575,2]
[351083185,1738327848966,-500.0,0.00016575,2]
[351083187,1738327848976,-500.0,0.00016575,2]
[351083189,1738327848985,-500.0,0.00016575,2]
[351083191,1738327848995,-500.0,0.00016575,2]
[351083193,1738327849004,-500.0,0.00016575,2]
[351083195,1738327849013,-920.4,0.00016575,2]
[351083197,1738327849022,-500.0,0.00016575,2]
[351083199,1738327849032,-500.0,0.00016575,2]
[351083201,1738327849041,-500.0,0.00016575,2]
[351083203,1738327849051,-500.0,0.00016575,2]
[351083205,1738327849060,-710.11,0.00016575,2]
[351083207,1738327849070,-500.0,0.00016575,2]
[351083209,1738327849080,-174.34258423,0.00016575,2]
[351083211,1738327849089,-842.59,0.00016575,2]
[351083213,1738327849099,-500.0,0.00016575,2]
[351083215,1738327849108,-623.42,0.00016575,2]
[351083217,1738327849117,-500.0,0.00016575,2]
[351083219,1738327849127,-555.95,0.00016575,2]
[351083221,1738327849136,-500.0,0.00016575,2]
[351083223,1738327849146,-500.0,0.00016575,2]
[351083225,1738327849155,-500.0,0.00016575,2]
[351083227,1738327849164,-500.0,0.00016575,2]
[351083229,1738327849174,-500.0,0.00016575,2]
[351083231,1738327849183,-500.0,0.00016575,2]
[351083233,1738327849192,-500.0,0.00016575,2]
[351083235,1738327849202,-500.0,0.00016575,2]
[351083237,1738327849211,-500.0,0.00016575,2]
[351083239,1738327849220,-636.76544554,0.00016575,2]
[351083241,1738327849230,-500.0,0.00016575,2]
[351083243,1738327849239,-500.0,0.00016575,2]
[351083245,1738327849249,-1410.34,0.00016575,2]
[351083247,1738327849258,-502.38833184,0.00016575,2]
[351083249,1738327849268,-500.0,0.00016575,2]
[351083251,1738327849277,-500.0,0.00016575,2]
[351083253,1738327849287,-502.16327801,0.00016575,2]
[351083255,1738327849297,-511.44402339,0.00016575,2]
[351083257,1738327849308,-627.16,0.00016575,2]
[351083259,1738327849321,-500.0,0.00016575,2]
[351083261,1738327849331,-504.66,0.00016575,2]
[351083263,1738327849340,-759.91,0.00016575,2]
[351083265,1738327849350,-500.0,0.00016575,2]
[351083267,1738327849360,-761.46,0.00016575,2]
[351083269,1738327849369,-703.17,0.00016575,2]
[351083271,1738327849378,-500.0,0.00016575,2]
[351083273,1738327849388,-500.0,0.00016575,2]
[351083275,1738327849398,-500.0,0.00016575,2]
[351083277,1738327849407,-500.0,0.00016575,2]
[351083279,1738327849416,-500.0,0.00016575,2]
[351083281,1738327849426,-500.0,0.00016575,2]
[351083283,1738327849435,-565.17,0.00016575,2]
[351083285,1738327849444,-261.98224934,0.00016575,2]
[351083287,1738327849453,-500.0,0.00016575,2]
[351083289,1738327849462,-682.18,0.00016575,2]
[351083291,1738327849472,-500.0,0.00016575,2]
[351083294,1738327849481,-500.0,0.00016575,2]
[351083296,1738327849491,-500.0,0.00016575,2]
[351083298,1738327849500,-580.34,0.00016575,2]
[351083299,1738327849509,-500.0,0.00016575,2]
[351083301,1738327849518,-500.0,0.00016575,2]
[351083303,1738327849528,-1905.07,0.00016575,2]
[351083306,1738327849537,-772.4,0.00016575,2]
[351083307,1738327849546,-500.0,0.00016575,2]
[351083310,1738327849557,-500.0,0.00016575,2]
[351083312,1738327849566,-1376.19,0.00016575,2]
[351083314,1738327849575,-761.42,0.00016575,2]
[351083315,1738327849585,-500.0,0.00016575,2]
[351083318,1738327849594,-354.04,0.00016575,2]
[351083320,1738327849603,-904.46,0.00016575,2]
[351083322,1738327849612,-500.0,0.00016575,2]
[351083324,1738327849621,-1661.38,0.00016575,2]
[351083325,1738327849630,-500.0,0.00016575,2]
[351083327,1738327849640,-518.52,0.00016575,2]
[351083329,1738327849648,-500.0,0.00016575,2]
[351083331,1738327849657,-500.0,0.00016575,2]
[351083333,1738327849667,-500.0,0.00016575,2]
[351083335,1738327849676,-500.0,0.00016575,2]
[351083337,1738327849686,-853.54,0.00016575,2]
[351083339,1738327849695,-1299.81,0.00016575,2]
[351083341,1738327849704,-2429.91,0.00016575,2]
[351083343,1738327849714,-913.58,0.00016575,2]
[351083345,1738327849729,-500.0,0.00016575,2]
[351083348,1738327849744,-500.0,0.00016575,2]
[351083349,1738327849755,-1302.12,0.00016575,2]
[351083351,1738327849765,-500.0,0.00016575,2]
[351083353,1738327849774,-569.21,0.00016575,2]
[351083355,1738327849783,-500.0,0.00016575,2]
[351083357,1738327849794,-500.0,0.00016575,2]
[351083359,1738327849804,-568.71,0.00016575,2]
[351083361,1738327849813,-500.0,0.00016575,2]
[351083363,1738327849822,-395.61918828,0.00016575,2]
[351083367,1738327849850,-424.24081172,0.00016575,2]
[351083369,1738327849859,-693.91,0.00016575,2]
[351083371,1738327849868,-500.0,0.00016575,2]
[351083373,1738327849877,-500.0,0.00016575,2]
[351083375,1738327849887,-500.0,0.00016575,2]
[351083377,1738327849896,-118.24038332,0.00016575,2]
[351083380,1738327849908,-381.75961668,0.00016575,2]
[351083382,1738327849918,-119.88038332,0.00016575,2]
[351083389,1738327849986,-238.70988567,0.00016575,2]
[351083393,1738327850014,-500.0,0.00016438,2]
[351083395,1738327850024,-141.40973101,0.00016575,2]
[351083398,1738327850035,-1243.42,0.00016575,2]
[351083400,1738327850044,-1097.57,0.00016575,2]
[351083402,1738327850055,-202.60026899,0.00016575,2]
[351083404,1738327850067,-400.11973101,0.00016575,2]
[351083406,1738327850076,-500.0,0.00016575,2]
[351083408,1738327850087,-80.17767441,0.00016575,2]
[351083496,1738327850987,-500.0,0.00016438,2]
[351083498,1738327850997,-500.0,0.00016438,2]
[351083500,1738327851007,-500.0,0.00016438,2]
[351083502,1738327851016,-500.0,0.00016438,2]
[351083504,1738327851026,-500.0,0.00016438,2]
[351083506,1738327851036,-500.0,0.00016438,2]
[351083508,1738327851046,-500.0,0.00016438,2]
[351083510,1738327851057,-500.0,0.00016438,2]
[351083512,1738327851067,-419.82232559,0.00016575,2]
[351083515,1738327851077,-500.0,0.00016575,2]
[351083517,1738327851087,-1813.15,0.00016575,2]
[351083519,1738327851096,-1348.99,0.00016575,2]
[351083521,1738327851106,-3032.29,0.00016575,2]
[351083523,1738327851116,-500.0,0.00016575,2]
[351083525,1738327851126,-2596.14,0.00016575,2]
[351083527,1738327851135,-162.35543539,0.00016575,2]
[351083569,1738327851506,-337.64456461,0.00016575,2]
[351083571,1738327851517,-512.26743938,0.00016575,2]
[351083573,1738327851526,-2921.26132101,0.00016575,2]
[351083575,1738327851538,-1732.37867899,0.00016575,2]
[351083577,1738327851547,-500.0,0.00016575,2]
[351083579,1738327851557,-774.04,0.00016575,2]
[351083581,1738327851566,-4069.52,0.00016575,2]
[351083583,1738327851576,-500.0,0.00016575,2]
[351083585,1738327851586,-2902.42,0.00016575,2]
[351083587,1738327851595,-988.32,0.00016575,2]
[351083589,1738327851604,-500.0,0.00016575,2]
[351083591,1738327851614,-500.0,0.00016575,2]
[351083593,1738327851624,-743.95,0.00016575,2]
[351083595,1738327851633,-1122.72,0.00016575,2]
[351083597,1738327851643,-500.0,0.00016575,2]
[351083599,1738327851653,-500.0,0.00016575,2]
[351083601,1738327851662,-1689.97,0.00016575,2]
[351083603,1738327851673,-561.28,0.00016575,2]
[351083606,1738327851684,-901.8,0.00016575,2]
[351083631,1738327851935,-500.0,0.00016575,2]
[351083634,1738327851999,-198.44011849,0.00016575,2]
[351083636,1738327852018,-500.0,0.00016575,2]
[351083638,1738327852027,-2491.49,0.00016575,2]
[351083640,1738327852036,-868.02,0.00016575,2]
[351083642,1738327852045,-913.1,0.00016575,2]
[351083643,1738327852055,-12273.97,0.00016575,2]
[351083645,1738327852064,-978.89,0.00016575,2]
[351083647,1738327852073,-500.0,0.00016575,2]
[351083649,1738327852082,-858.86,0.00016575,2]
[351083650,1738327852091,-504.93304718,0.00016575,2]
[351083652,1738327852101,-865.14,0.00016575,2]
[351083654,1738327852110,-514.38,0.00016575,2]
[351083656,1738327852119,-500.0,0.00016575,2]
[351083657,1738327852129,-825.72,0.00016575,2]
[351083659,1738327852138,-500.0,0.00016575,2]
[351083661,1738327852148,-301.2490677,0.00016575,2]
[351083662,1738327852157,-500.0,0.00016575,2]
[351083664,1738327852167,-4895.21,0.00016575,2]
[351083666,1738327852176,-1865.7,0.00016575,2]
[351083668,1738327852185,-500.0,0.00016575,2]
[351083670,1738327852195,-500.0,0.00016575,2]
[351083672,1738327852204,-500.0,0.00016575,2]
[351083674,1738327852214,-6997.38,0.00016575,2]
[351083675,1738327852223,-500.0,0.00016575,2]
[351083677,1738327852233,-500.0,0.00016575,2]
[351083679,1738327852242,-500.0,0.00016575,2]
[351083681,1738327852251,-500.0,0.00016575,2]
[351083683,1738327852260,-502.63145753,0.00016575,2]
[351083684,1738327852269,-1982.08,0.00016575,2]
[351083686,1738327852278,-500.0,0.00016575,2]
[351083688,1738327852288,-1055.43,0.00016575,2]
[351083690,1738327852297,-941.44,0.00016575,2]
[351083692,1738327852306,-500.0,0.00016575,2]
[351083694,1738327852316,-500.0,0.00016575,2]
[351083696,1738327852325,-274.56236185,0.00016575,2]
[351083697,1738327852334,-500.0,0.00016575,2]
[351083699,1738327852343,-500.0,0.00016575,2]
[351083701,1738327852353,-1007.6,0.00016575,2]
[351083703,1738327852362,-500.0,0.00016575,2]
[351083705,1738327852371,-500.0,0.00016575,2]
[351083707,1738327852380,-500.0,0.00016575,2]
[351083708,1738327852390,-500.0,0.00016575,2]
[351083710,1738327852400,-500.0,0.00016575,2]
[351083712,1738327852410,-500.0,0.00016575,2]
[351083714,1738327852419,-1609.46,0.00016575,2]
[351083716,1738327852428,-500.0,0.00016575,2]
[351083718,1738327852437,-189.89328579,0.00016575,2]
[351083720,1738327852456,-310.10671421,0.00016575,2]
[351083722,1738327852465,-154.59329379,0.00016575,2]
[351083725,1738327852482,-345.40670621,0.00016575,2]
[351083727,1738327852491,-1353.6,0.00016575,2]
[351083729,1738327852500,-500.0,0.00016575,2]
[351083730,1738327852510,-500.9929406,0.00016575,2]
[351083732,1738327852520,-947.55,0.00016575,2]
[351083734,1738327852529,-894.97,0.00016575,2]
[351083736,1738327852538,-684.2,0.00016575,2]
[351083738,1738327852547,-500.0,0.00016575,2]
[351083740,1738327852557,-500.0,0.00016575,2]
[351083741,1738327852568,-500.0,0.00016575,2]
[351083743,1738327852577,-789.59,0.00016575,2]
[351083745,1738327852587,-500.0,0.00016575,2]
[351083747,1738327852597,-1783.66,0.00016575,2]
[351083749,1738327852607,-1386.39,0.00016575,2]
[351083751,1738327852618,-504.60188676,0.00016575,2]
[351083753,1738327852629,-500.0,0.00016575,2]
[351083755,1738327852639,-1109.87,0.00016575,2]
[351083756,1738327852649,-1358.53,0.00016575,2]
[351083758,1738327852659,-2745.9,0.00016575,2]
[351083760,1738327852669,-70.82407426,0.00016575,2]
[351083763,1738327852694,-500.0,0.00016438,2]
[351083765,1738327852704,-429.17592574,0.00016575,2]
[351083767,1738327852714,-500.0,0.00016575,2]
[351083769,1738327852724,-834.98,0.00016575,2]
[351083770,1738327852734,-4290.33,0.00016575,2]
[351083772,1738327852747,-1349.46,0.00016575,2]
[351083774,1738327852756,-500.0,0.00016575,2]
[351083776,1738327852766,-500.0,0.00016575,2]
[351083778,1738327852775,-947.97,0.00016575,2]
[351083780,1738327852786,-500.0,0.00016575,2]
[351083781,1738327852795,-500.0,0.00016575,2]
[351083783,1738327852807,-500.0,0.00016575,2]
[351083785,1738327852817,-1006.12,0.00016575,2]
[351083787,1738327852827,-500.0,0.00016575,2]
[351083789,1738327852836,-718.66,0.00016575,2]
[351083790,1738327852845,-500.0,0.00016575,2]
[351083792,1738327852855,-500.0,0.00016575,2]
[351083794,1738327852864,-500.0,0.00016575,2]
[351083796,1738327852874,-500.0,0.00016575,2]
[351083798,1738327852883,-987.85,0.00016575,2]
[351083800,1738327852893,-994.0,0.00016575,2]
[351083802,1738327852903,-500.0,0.00016575,2]
[351083803,1738327852912,-713.83,0.00016575,2]
[351083804,1738327852921,-500.0,0.00016575,2]
[351083805,1738327852931,-500.0,0.00016575,2]
[351083806,1738327852940,-1816.91,0.00016575,2]
[351083807,1738327852950,-500.0,0.00016575,2]
[351083808,1738327852959,-500.0,0.00016575,2]
[351083809,1738327852969,-500.0,0.00016575,2]
[351083810,1738327852979,-500.0,0.00016575,2]
[351083811,1738327852989,-5567.83,0.00016575,2]
[351083812,1738327852999,-504.10444007,0.00016575,2]
[351083813,1738327853009,-500.0,0.00016575,2]
[351083814,1738327853019,-500.29,0.00016575,2]
[351083815,1738327853029,-1878.55,0.00016575,2]
[351083817,1738327853039,-554.03,0.00016575,2]
[351083818,1738327853049,-500.0,0.00016575,2]
[351083820,1738327853061,-500.0,0.00016575,2]
[351083822,1738327853071,-500.0,0.00016575,2]
[351083824,1738327853080,-655.16,0.00016575,2]
[351083826,1738327853089,-885.67,0.00016575,2]
[351083828,1738327853099,-2305.06,0.00016575,2]
[351083830,1738327853108,-538.72893517,0.00016575,2]
[351083832,1738327853118,-730.24,0.00016575,2]
[351083834,1738327853128,-500.0,0.00016575,2]
[351083836,1738327853137,-778.92,0.00016575,2]
[351083838,1738327853147,-1690.48,0.00016575,2]
[351083840,1738327853157,-1036.38,0.00016575,2]
[351083842,1738327853166,-500.0,0.00016575,2]
[351083844,1738327853176,-562.14840904,0.00016575,2]
[351083846,1738327853185,-1940.18,0.00016575,2]
[351083848,1738327853194,-2694.15,0.00016575,2]
[351083850,1738327853203,-1861.76,0.00016575,2]
[351083852,1738327853212,-500.0,0.00016575,2]
[351083854,1738327853221,-599.38,0.00016575,2]
[351083856,1738327853230,-500.0,0.00016575,2]
[351083858,1738327853239,-500.0,0.00016575,2]
[351083860,1738327853249,-500.0,0.00016575,2]
[351083862,1738327853258,-1295.48,0.00016575,2]
[351083864,1738327853267,-500.0,0.00016575,2]
[351083866,1738327853276,-670.85,0.00016575,2]
[351083868,1738327853285,-500.0,0.00016575,2]
[351083870,1738327853294,-505.33764281,0.00016575,2]
[351083872,1738327853303,-500.0,0.00016575,2]
[351083874,1738327853313,-500.0,0.00016575,2]
[351083876,1738327853323,-500.0,0.00016575,2]
[351083878,1738327853332,-500.0,0.00016575,2]
[351083880,1738327853342,-2860.75,0.00016575,2]
[351083882,1738327853351,-500.0,0.00016575,2]
[351083884,1738327853360,-5072.61,0.00016575,2]
[351083886,1738327853369,-500.0,0.00016575,2]
[351083888,1738327853378,-884.51,0.00016575,2]
[351083890,1738327853387,-3707.46,0.00016575,2]
[351083892,1738327853396,-578.59,0.00016575,2]
[351083894,1738327853405,-500.0,0.00016575,2]
[351083896,1738327853414,-500.0,0.00016575,2]
[351083898,1738327853423,-1764.1,0.00016575,2]
[351083900,1738327853432,-2624.53,0.00016575,2]
[351083902,1738327853442,-989.75,0.00016575,2]
[351083904,1738327853451,-500.0,0.00016575,2]
[351083906,1738327853460,-500.0,0.00016575,2]
[351083908,1738327853469,-504.73660234,0.00016575,2]
[351083909,1738327853478,-500.0,0.00016575,2]
[351083910,1738327853487,-978.22,0.00016575,2]
[351083911,1738327853496,-500.0,0.00016575,2]
[351083912,1738327853507,-1615.31,0.00016575,2]
[351083913,1738327853516,-500.0,0.00016575,2]
[351083914,1738327853525,-2446.98,0.00016575,2]
[351083915,1738327853533,-984.71,0.00016575,2]
[351083916,1738327853542,-2396.36,0.00016575,2]
[351083918,1738327853552,-248.86184351,0.00016575,2]
[351083919,1738327853562,-500.0,0.00016575,2]
[351083920,1738327853571,-500.0,0.00016575,2]
[351083921,1738327853580,-500.0,0.00016575,2]
[351083922,1738327853589,-500.0,0.00016575,2]
[351083923,1738327853598,-500.0,0.00016575,2]
[351083924,1738327853608,-3731.27,0.00016575,2]
[351083925,1738327853617,-1048.24,0.00016575,2]
[351083926,1738327853626,-513.04096001,0.00016575,2]
[351083927,1738327853635,-500.0,0.00016575,2]
[351083928,1738327853644,-500.0,0.00016575,2]
[351083929,1738327853653,-500.0,0.00016575,2]
[351083930,1738327853663,-1320.56,0.00016575,2]
[351083931,1738327853672,-500.0,0.00016575,2]
[351083932,1738327853681,-500.0,0.00016575,2]
[351083933,1738327853690,-2272.61,0.00016575,2]
[351083934,1738327853699,-580.2,0.00016575,2]
[351083935,1738327853708,-500.0,0.00016575,2]
[351083936,1738327853717,-2006.32,0.00016575,2]
[351083937,1738327853727,-500.0,0.00016575,2]
[351083938,1738327853737,-500.0,0.00016575,2]
[351083939,1738327853748,-500.0,0.00016575,2]
[351083941,1738327853757,-1377.48,0.00016575,2]
[351083943,1738327853766,-2271.3,0.00016575,2]
[351083945,1738327853775,-500.0,0.00016575,2]
[351083947,1738327853785,-510.77423339,0.00016575,2]
[351083948,1738327853794,-757.74,0.00016575,2]
[351083949,1738327853803,-2074.93,0.00016575,2]
[351083950,1738327853813,-500.0,0.00016575,2]
[351083952,1738327853825,-3673.84,0.00016575,2]
[351083953,1738327853835,-500.0,0.00016575,2]
[351083954,1738327853844,-2410.39,0.00016575,2]
[351083955,1738327853853,-500.0,0.00016575,2]
[351083956,1738327853862,-734.53,0.00016575,2]
[351083957,1738327853871,-1306.11,0.00016575,2]
[351083958,1738327853880,-500.0,0.00016575,2]
[351083959,1738327853889,-500.0,0.00016575,2]
[351083960,1738327853899,-500.0,0.00016575,2]
[351083961,1738327853908,-1525.71,0.00016575,2]
[351083962,1738327853918,-500.0,0.00016575,2]
[351083963,1738327853928,-500.0,0.00016575,2]
[351083964,1738327853937,-2599.88,0.00016575,2]
[351083965,1738327853947,-1789.08,0.00016575,2]
[351083966,1738327853956,-500.0,0.00016575,2]
[351083967,1738327853966,-636.61,0.00016575,2]
[351083968,1738327853975,-500.0,0.00016575,2]
[351083969,1738327853985,-3329.28,0.00016575,2]
[351083970,1738327853994,-500.0,0.00016575,2]
[351083971,1738327854003,-710.96,0.00016575,2]
[351083972,1738327854012,-500.0,0.00016575,2]
[351083973,1738327854021,-500.0,0.00016575,2]
[351083974,1738327854031,-1944.67,0.00016575,2]
[351083975,1738327854041,-500.0,0.00016575,2]
[351083976,1738327854051,-500.0,0.00016575,2]
[351083977,1738327854061,-4066.08,0.00016575,2]
[351083978,1738327854070,-500.0,0.00016575,2]
[351083979,1738327854080,-500.0,0.00016575,2]
[351083980,1738327854089,-1228.39,0.00016575,2]
[351083981,1738327854099,-2281.08,0.00016575,2]
[351083982,1738327854108,-775.34,0.00016575,2]
[351083983,1738327854118,-2135.3,0.00016575,2]
[351083984,1738327854128,-500.0,0.00016575,2]
[351083985,1738327854137,-500.0,0.00016575,2]
[351083986,1738327854146,-1182.78,0.00016575,2]
[351083987,1738327854156,-519.51122819,0.00016575,2]
[351083988,1738327854165,-5199.85,0.00016575,2]
[351083989,1738327854174,-500.0,0.00016575,2]
[351083990,1738327854184,-500.0,0.00016575,2]
[351083991,1738327854193,-500.0,0.00016575,2]
[351083992,1738327854203,-4488.38,0.00016575,2]
[351083993,1738327854213,-1082.85,0.00016575,2]
[351083994,1738327854222,-500.0,0.00016575,2]
[351083995,1738327854232,-500.0,0.00016575,2]
[351083996,1738327854243,-500.0,0.00016575,2]
[351083997,1738327854256,-500.0,0.00016575,2]
[351083998,1738327854266,-1915.53,0.00016575,2]
[351083999,1738327854276,-1034.21,0.00016575,2]
[351084000,1738327854286,-452.83576256,0.00016575,2]
[351084001,1738327854296,-1122.57,0.00016575,2]
[351084002,1738327854307,-500.0,0.00016575,2]
[351084003,1738327854316,-500.0,0.00016575,2]
[351084004,1738327854325,-500.0,0.00016575,2]
[351084005,1738327854334,-1686.02,0.00016575,2]
[351084006,1738327854343,-1258.5,0.00016575,2]
[351084007,1738327854353,-585.60331672,0.00016575,2]
[351084008,1738327854363,-5957.19,0.00016575,2]
[351084009,1738327854372,-10975.61,0.00016575,2]
[351084010,1738327854383,-514.02212308,0.00016575,2]
[351084011,1738327854393,-1169.5,0.00016575,2]
[351084012,1738327854403,-849.45,0.00016575,2]
[351084013,1738327854412,-702.04,0.00016575,2]
[351084014,1738327854422,-557.79,0.00016575,2]
[351084015,1738327854432,-500.0,0.00016575,2]
[351084016,1738327854442,-500.0,0.00016575,2]
[351084017,1738327854453,-5362.39,0.00016575,2]
[351084018,1738327854463,-500.0,0.00016575,2]
[351084019,1738327854471,-500.0,0.00016575,2]
[351084020,1738327854480,-500.0,0.00016575,2]
[351084021,1738327854489,-6528.92,0.00016575,2]
[351084022,1738327854499,-500.0,0.00016575,2]
[351084023,1738327854507,-946.4,0.00016575,2]
[351084024,1738327854516,-1997.14,0.00016575,2]
[351084025,1738327854525,-556.51,0.00016575,2]
[351084026,1738327854534,-500.0,0.00016575,2]
[351084027,1738327854543,-500.0,0.00016575,2]
[351084028,1738327854552,-500.0,0.00016575,2]
[351084029,1738327854563,-500.0,0.00016575,2]
[351084030,1738327854572,-3374.25,0.00016575,2]
[351084031,1738327854581,-2510.0,0.00016575,2]
[351084032,1738327854590,-500.0,0.00016575,2]
[351084033,1738327854599,-500.0,0.00016575,2]
[351084034,1738327854608,-500.0,0.00016575,2]
[351084035,1738327854618,-6439.4,0.00016575,2]
[351084036,1738327854630,-1587.21,0.00016575,2]
[351084037,1738327854641,-500.0,0.00016575,2]
[351084038,1738327854655,-500.0,0.00016575,2]
[351084039,1738327854668,-185.32804393,0.00016575,2]
[351084040,1738327854680,-671.09,0.00016575,2]
[351084041,1738327854689,-1210.85,0.00016575,2]
[351084042,1738327854700,-500.0,0.00016575,2]
[351084043,1738327854713,-1230.68,0.00016575,2]
[351084044,1738327854724,-500.0,0.00016575,2]
[351084045,1738327854736,-2795.53,0.00016575,2]
[351084046,1738327854752,-500.0,0.00016575,2]
[351084047,1738327854764,-500.0,0.00016575,2]
[351084048,1738327854775,-500.0,0.00016575,2]
[351084049,1738327854786,-500.0,0.00016575,2]
[351084050,1738327854796,-959.52,0.00016575,2]
[351084051,1738327854806,-1572.38,0.00016575,2]
[351084052,1738327854818,-500.0,0.00016575,2]
[351084053,1738327854830,-500.0,0.00016575,2]
[351084054,1738327854842,-500.0,0.00016575,2]
[351084055,1738327854854,-500.0,0.00016575,2]
[351084056,1738327854866,-500.0,0.00016575,2]
[351084057,1738327854878,-500.0,0.00016575,2]
[351084058,1738327854891,-500.0,0.00016575,2]
[351084059,1738327854903,-500.0,0.00016575,2]
[351084060,1738327854915,-500.0,0.00016575,2]
[351084061,1738327854927,-500.0,0.00016575,2]
[351084062,1738327854939,-500.0,0.00016575,2]
[351084063,1738327854951,-500.0,0.00016575,2]
[351084064,1738327854962,-500.0,0.00016575,2]
[351084065,1738327854974,-616.35563631,0.00016575,2]
[351084066,1738327854986,-269.9406502,0.00016582,2]
[351084067,1738327854998,-156.29,0.00016658,30]
[351084068,1738327855009,-166.412,0.00016658,2]
[351084069,1738327855022,-1013.021,0.00016658,2]
[351084070,1738327855034,-269.9406502,0.00016703,2]
[351084071,1738327855045,-1009.11,0.00016711,2]
[351084072,1738327855058,-1009.11,0.00016711,2]
[351084073,1738327855069,-500.0,0.00016711,2]
[351084074,1738327855079,-631.62,0.00016711,2]
[351084075,1738327855090,-500.0,0.00016712,2]